[Event "Bruges Masters 2018"]
[Site "Brugge"]
[Date "2018.08.16"]
[Round "7"]
[White "Van Foreest, Lucas"]
[Black "Bisby, Daniel L"]
[Result "1-0"]
[ECO "B38"]
[WhiteElo "2488"]
[BlackElo "2314"]
[Annotator "ChessBase"]
[PlyCount "111"]
[EventDate "2018.08.12"]
[EventType "swiss"]
[EventCountry "BEL"]
[SourceTitle "playchess.com"]
[Source "ChessBase"]
[SourceQuality "1"]
[TimeControl "5400+30"]

1. e4 {[%emt 0:06:52]} c5 {[%emt 0:00:14]} 2. Nf3 {[%emt 0:00:04]} g6 {[%emt 0:00:14]} 3. d4 {[%emt 0:00:06]} cxd4 {[%emt 0:00:11]} 4. Nxd4 {[%emt 0:00:15]} Bg7 {[%emt 0:00:35]} 5. c4 {[%emt 0:00:29]} Nc6 {[%emt 0:00:23]} 6. Nc2 {[%emt 0:00:27]} Nf6 {[%emt 0:01:56]} 7. Nc3 {[%emt 0:00:23]} O-O {[%emt 0:01:45]} 8. Be2 {[%emt 0:00:43]} b6 {[%emt 0:00:32]} 9. O-O {[%emt 0:00:06]} Bb7 {[%emt 0:02:15]} 10. Be3 {[%emt 0:02:21]} Ne8 {[%emt 0:01:29]} 11. Qd2 {[%emt 0:00:28]} Nd6 {[%emt 0:00:26]} 12. f3 {[%emt 0:03:58]} f5 {[%emt 0:08:16]} 13. c5 {[%emt 0:16:54]} bxc5 {[%emt 0:07:11]} 14. Bxc5 {[%emt 0:02:09]} Rc8 {[%emt 0:15:06]} 15. Rad1 {[%emt 0:05:15]} Ne5 {[%emt 0:14:01]} 16. Bxd6 {[%emt 0:00:05]} Qb6+ {[%emt 0:01:31]} 17. Qe3 {[%emt 0:01:15]} exd6 {[%emt 0:10:13]} 18. Qxb6 {[%emt 0:00:08]} axb6 {[%emt 0:00:03]} 19. exf5 {[%emt 0:01:02]} Rxf5 {[%emt 0:01:12]} 20. Ne3 {[%emt 0:00:58]} Rf4 {[%emt 0:03:08]} 21. Ned5 {[%emt 0:01:02]} Bxd5 {[%emt 0:00:08]} 22. Nxd5 {[%emt 0:00:02]} Rf7 {[%emt 0:00:08]} 23. f4 {[%emt 0:00:53]} Rc2 {[%emt 0:03:46]} 24. Nc3 {[%emt 0:00:10]} Nc6 {[%emt 0:02:52]} 25. Bc4 {[%emt 0:00:03]} Bd4+ {[%emt 0:00:58]} 26. Kh1 {[%emt 0:00:30]} Rxb2 {[%emt 0:00:18]} 27. Ne4 {[%emt 0:02:10]} Kg7 {[%emt 0:03:27]} 28. Bxf7 {[%emt 0:00:02]} Kxf7 {[%emt 0:00:06]} 29. Rd2 {[%emt 0:00:03]} Rxd2 {[%emt 0:01:15]} 30. Nxd2 {[%emt 0:00:04]} Nb4 {[%emt 0:06:22]} 31. a4 {[%emt 0:01:31]} Nd3 {[%emt 0:00:14]} 32. g3 {[%emt 0:02:41]} Nc5 {[%emt 0:00:25]} 33. Rb1 {[%emt 0:13:27]} Nxa4 {[%emt 0:02:16]} 34. Rb4 {[%emt 0:00:05]} Bc3 {[%emt 0:00:12]} 35. Rxa4 {[%emt 0:00:01]} Bxd2 {[%emt 0:00:07]} 36. Rd4 {[%emt 0:00:02]} Be3 {[%emt 0:01:35]} 37. Rxd6 {[%emt 0:00:01]} Ke7 {[%emt 0:00:17]} 38. Rd1 {[%emt 0:00:13]} Bc5 {[%emt 0:00:29]} 39. Kg2 {[%emt 0:00:05]} b5 {[%emt 0:06:55]} 40. Kf3 {[%emt 0:00:14]} b4 {[%emt 0:01:56]} 41. Ke4 {[%emt 0:00:49]} Ke6 {[%emt 0:02:37]} 42. g4 {[%emt 0:02:26]} Bf8 {[%emt 0:01:02]} 43. Rd4 {[%emt 0:12:27]} Bc5 {[%emt 0:02:09]} 44. Rd5 {[%emt 0:02:30]} Bf8 {[%emt 0:01:03]} 45. Rb5 {[%emt 0:00:41]} Be7 {[%emt 0:00:29]} 46. Rb6+ {[%emt 0:00:31]} Kf7 {[%emt 0:00:18]} 47. Kd5 {[%emt 0:01:14]} Bf8 {[%emt 0:00:40]} 48. Ke5 {[%emt 0:02:37]} Be7 {[%emt 0:00:31]} 49. Rb8 {[%emt 0:00:52]} Bf8 {[%emt 0:00:22]} 50. Rb7 {[%emt 0:00:31]} Ke8 {[%emt 0:00:11]} 51. f5 {[%emt 0:02:42]} Bg7+ {[%emt 0:00:32]} 52. f6 {[%emt 0:00:20]} Bf8 {[%emt 0:00:05]} 53. Kd5 {[%emt 0:00:53]} h6 {[%emt 0:00:56]} 54. h4 {[%emt 0:00:17]} g5 {[%emt 0:00:54]} 55. hxg5 {[%emt 0:00:02]} hxg5 {[%emt 0:00:06]} 56. Ke5 {[%emt 0:00:04]} 1-0

[Event "Bruges Masters 2018"]
[Site "Brugge"]
[Date "2018.08.16"]
[Round "7"]
[White "Koziak, Vitali"]
[Black "Verstraeten, Rein"]
[Result "1-0"]
[ECO "E83"]
[WhiteElo "2476"]
[BlackElo "2303"]
[Annotator "ChessBase"]
[PlyCount "125"]
[EventDate "2018.08.12"]
[EventType "swiss"]
[EventCountry "BEL"]
[SourceTitle "playchess.com"]
[Source "ChessBase"]
[SourceQuality "1"]
[TimeControl "5400+30"]

1. d4 {[%emt 0:09:31]} Nf6 {[%emt 0:00:00]} 2. c4 {[%emt 0:00:49]} g6 {[%emt 0:00:00]} 3. Nc3 {[%emt 0:00:17]} Bg7 {[%emt 0:00:00]} 4. e4 {[%emt 0:02:04]} d6 {[%emt 0:00:05]} 5. f3 {[%emt 0:01:31]} O-O {[%emt 0:00:07]} 6. Be3 {[%emt 0:00:04]} Nc6 {[%emt 0:00:04]} 7. Qd2 {[%emt 0:03:01]} a6 {[%emt 0:00:09]} 8. Nge2 {[%emt 0:05:24]} Na5 {[%emt 0:00:06]} 9. Nc1 {[%emt 0:12:11]} Nd7 {[%emt 0:00:05]} 10. b4 {[%emt 0:13:44]} Nc6 {[%emt 0:00:19]} 11. Rb1 {[%emt 0:00:11]} e5 {[%emt 0:03:03]} 12. d5 {[%emt 0:00:42]} Nd4 {[%emt 0:14:17]} 13. N1e2 {[%emt 0:04:53]} a5 {[%emt 0:01:25]} 14. a3 {[%emt 0:03:31]} f5 {[%emt 0:15:40]} 15. Nxd4 {[%emt 0:03:20]} exd4 {[%emt 0:00:10]} 16. Bxd4 {[%emt 0:00:08]} Bxd4 {[%emt 0:21:51]} 17. Qxd4 {[%emt 0:01:36]} axb4 {[%emt 0:00:07]} 18. axb4 {[%emt 0:00:18]} fxe4 {[%emt 0:00:05]} 19. Nxe4 {[%emt 0:01:15]} Ra2 {[%emt 0:02:51]} 20. Nc3 {[%emt 0:17:37]} Re8+ {[%emt 0:00:42]} 21. Be2 {[%emt 0:02:28]} Qg5 {[%emt 0:04:30]} 22. g3 {[%emt 0:06:47]} Qf5 {[%emt 0:16:41]} 23. Kf2 {[%emt 0:02:47]} Raxe2+ {[%emt 0:05:22]} 24. Nxe2 {[%emt 0:00:06]} Ne5 {[%emt 0:00:26]} 25. Rb3 {[%emt 0:05:01]} Ng4+ {[%emt 0:08:27]} 26. Kf1 {[%emt 0:00:07]} Rxe2 {[%emt 0:03:53]} 27. Kxe2 {[%emt 0:03:21]} Qc2+ {[%emt 0:00:05]} 28. Kf1 {[%emt 0:00:31]} Qc1+ {[%emt 0:00:59]} 29. Kg2 {[%emt 0:00:15]} Qc2+ {[%emt 0:00:01]} 30. Kf1 {[%emt 0:00:09]} Ne5 {[%emt 0:02:09]} 31. Re3 {[%emt 0:00:55]} Bh3+ {[%emt 0:00:09]} 32. Ke1 {[%emt 0:00:10]} Qg2 {[%emt 0:00:06]} 33. Rxe5 {[%emt 0:01:06]} Qxh1+ {[%emt 0:00:08]} 34. Kd2 {[%emt 0:00:28]} dxe5 {[%emt 0:00:14]} 35. Qh4 {[%emt 0:00:38]} Qg2+ {[%emt 0:00:18]} 36. Kc1 {[%emt 0:00:15]} Qg1+ {[%emt 0:01:47]} 37. Kd2 {[%emt 0:00:03]} Qf2+ {[%emt 0:00:08]} 38. Kc1 {[%emt 0:00:48]} Qe1+ {[%emt 0:00:13]} 39. Kc2 {[%emt 0:00:34]} Bf5+ {[%emt 0:00:30]} 40. Kb3 {[%emt 0:00:07]} Qd1+ {[%emt 0:00:26]} 41. Ka3 {[%emt 0:00:17]} Qc1+ {[%emt 0:01:27]} 42. Ka4 {[%emt 0:00:24]} b5+ {[%emt 0:00:53]} 43. Kxb5 {[%emt 0:00:33]} Bd7+ {[%emt 0:00:04]} 44. Ka6 {[%emt 0:00:09]} Bc8+ {[%emt 0:00:54]} 45. Ka7 {[%emt 0:00:22]} Qa3+ {[%emt 0:00:52]} 46. Kb8 {[%emt 0:00:04]} Bf5 {[%emt 0:00:38]} 47. Qd8+ {[%emt 0:01:11]} Kg7 {[%emt 0:00:03]} 48. Qxc7+ {[%emt 0:00:16]} Kh6 {[%emt 0:00:04]} 49. b5 {[%emt 0:00:21]} Qxf3 {[%emt 0:01:00]} 50. Qxe5 {[%emt 0:01:42]} Qb3 {[%emt 0:00:25]} 51. Qf4+ {[%emt 0:00:36]} Kg7 {[%emt 0:00:01]} 52. b6 {[%emt 0:00:38]} Qa4 {[%emt 0:01:16]} 53. Qc7+ {[%emt 0:00:25]} Kh6 {[%emt 0:00:08]} 54. Qc6 {[%emt 0:00:29]} Qb4 {[%emt 0:01:00]} 55. b7 {[%emt 0:00:34]} Qf8+ {[%emt 0:00:15]} 56. Ka7 {[%emt 0:00:10]} Qa3+ {[%emt 0:00:04]} 57. Kb6 {[%emt 0:00:09]} Qb4+ {[%emt 0:00:29]} 58. Qb5 {[%emt 0:00:48]} Qd6+ {[%emt 0:00:01]} 59. Ka7 {[%emt 0:00:28]} Qa3+ {[%emt 0:00:07]} 60. Qa6 {[%emt 0:00:14]} Qc5+ {[%emt 0:01:15]} 61. Ka8 {[%emt 0:00:17]} Bd3 {[%emt 0:00:13]} 62. b8=Q {[%emt 0:00:38]} Bxc4 {[%emt 0:00:11]} 63. Qf4+ {[%emt 0:00:12]} 1-0

[Event "Bruges Masters 2018"]
[Site "Brugge"]
[Date "2018.08.16"]
[Round "7"]
[White "Miciano, John Marvin"]
[Black "Bergre, Joachim"]
[Result "1-0"]
[ECO "E60"]
[WhiteElo "2381"]
[BlackElo "1988"]
[Annotator "NA"]
[PlyCount "47"]
[EventDate "2018.08.12"]
[EventType "swiss"]
[EventCountry "BEL"]
[SourceTitle "playchess.com"]
[Source "ChessBase"]
[SourceQuality "1"]
[TimeControl "5400+30"]

1. g3 {[%emt 0:00:09]} g6 {[%emt 0:00:10]} 2. Bg2 {[%emt 0:00:06]} Bg7 {[%emt 0:00:09]} 3. e4 {[%emt 0:00:56]} d6 {[%emt 0:01:10]} 4. Ne2 {[%emt 0:00:21]} c5 {[%emt 0:03:10]} 5. d4 {[%emt 0:00:17]} cxd4 {[%emt 0:04:30]} 6. Nxd4 {[%emt 0:00:06]} Nf6 {[%emt 0:00:12]} 7. O-O {[%emt 0:00:06]} O-O {[%emt 0:00:14]} 8. c4 {[%emt 0:04:10]} Nc6 {[%emt 0:04:32]} 9. Nc2 {[%emt 0:01:05]} Bg4 {[%emt 0:05:02]} 10. f3 {[%emt 0:02:01]} Be6 {[%emt 0:00:34]} 11. Nba3 {[%emt 0:02:21]} Nd7 {[%emt 0:07:33]} 12. Rb1 {[%emt 0:00:44]} a5 {[%emt 0:00:41]} 13. b3 {[%emt 0:01:25]} Nb4 {[%emt 0:05:59]} 14. f4 {[%emt 0:02:55]} Nc5 {[%emt 0:05:00]} 15. Nxb4 {[%emt 0:14:33]} axb4 {[%emt 0:00:12]} 16. Nc2 {[%emt 0:00:08]} Qb6 {[%emt 0:04:12]} 17. Ne3 {[%emt 0:00:24]} Rxa2 {[%emt 0:13:10]} 18. f5 {[%emt 0:00:14]} Bd7 {[%emt 0:00:17]} 19. Nd5 {[%emt 0:00:16]} Qd8 {[%emt 0:02:21]} 20. Nxb4 {[%emt 0:03:48]} Ra8 {[%emt 0:01:05]} 21. Be3 {[%emt 0:02:59]} Bc6 {[%emt 0:02:29]} 22. Nxc6 {[%emt 0:05:36]} bxc6 {[%emt 0:00:09]} 23. e5 {[%emt 0:01:09]} Rc8 {[%emt 0:03:23]} 24. f6 {[%emt 0:56:11]} 1-0

[Event "Bruges Masters 2018"]
[Site "Brugge"]
[Date "2018.08.16"]
[Round "7"]
[White "Mehar, Chinna Reddy C H"]
[Black "Lai, Hing Ting"]
[Result "1/2-1/2"]
[ECO "D05"]
[WhiteElo "2345"]
[BlackElo "2459"]
[Annotator "ChessBase"]
[PlyCount "108"]
[EventDate "2018.08.12"]
[EventType "swiss"]
[EventCountry "BEL"]
[SourceTitle "playchess.com"]
[Source "ChessBase"]
[SourceQuality "1"]
[TimeControl "5400+30"]

1. d4 {[%emt 0:08:15]} Nf6 {[%emt 0:00:00]} 2. Nf3 {[%emt 0:00:37]} e6 {[%emt 0:00:00]} 3. e3 {[%emt 0:00:22]} c5 {[%emt 0:00:03]} 4. Bd3 {[%emt 0:00:34]} d5 {[%emt 0:01:18]} 5. b3 {[%emt 0:00:24]} Nc6 {[%emt 0:01:51]} 6. Bb2 {[%emt 0:00:14]} cxd4 {[%emt 0:01:06]} 7. exd4 {[%emt 0:00:08]} Bb4+ {[%emt 0:00:19]} 8. c3 {[%emt 0:01:45]} Bd6 {[%emt 0:00:06]} 9. O-O {[%emt 0:00:27]} O-O {[%emt 0:00:28]} 10. Nbd2 {[%emt 0:01:28]} b6 {[%emt 0:03:56]} 11. Qe2 {[%emt 0:00:23]} a5 {[%emt 0:10:04]} 12. Ne5 {[%emt 0:04:18]} Ne7 {[%emt 0:03:18]} 13. a4 {[%emt 0:01:04]} Bb7 {[%emt 0:01:30]} 14. Rac1 {[%emt 0:02:53]} g6 {[%emt 0:04:29]} 15. Rfd1 {[%emt 0:07:29]} Rc8 {[%emt 0:08:42]} 16. Bb5 {[%emt 0:02:38]} Rc7 {[%emt 0:08:08]} 17. Ndf3 {[%emt 0:03:05]} Nf5 {[%emt 0:04:03]} 18. c4 {[%emt 0:08:30]} Qe7 {[%emt 0:02:37]} 19. Nd3 {[%emt 0:07:52]} Ne4 {[%emt 0:01:25]} 20. Nfe5 {[%emt 0:01:34]} Rfc8 {[%emt 0:14:02]} 21. f3 {[%emt 0:02:47]} dxc4 {[%emt 0:00:23]} 22. bxc4 {[%emt 0:01:28]} Nf6 {[%emt 0:00:35]} 23. c5 {[%emt 0:03:06]} Bxe5 {[%emt 0:11:44]} 24. Qxe5 {[%emt 0:03:23]} Nd5 {[%emt 0:00:39]} 25. cxb6 {[%emt 0:00:07]} Rc2 {[%emt 0:00:21]} 26. Rxc2 {[%emt 0:07:43]} Rxc2 {[%emt 0:00:51]} 27. Bc1 {[%emt 0:02:00]} f6 {[%emt 0:08:21]} 28. Qe1 {[%emt 0:00:08]} Nxd4 {[%emt 0:00:41]} 29. Rd2 {[%emt 0:00:31]} Rc8 {[%emt 0:00:14]} 30. Bb2 {[%emt 0:01:48]} Nxb5 {[%emt 0:02:50]} 31. axb5 {[%emt 0:00:06]} Nxb6 {[%emt 0:02:59]} 32. Re2 {[%emt 0:00:32]} Kf7 {[%emt 0:01:27]} 33. f4 {[%emt 0:06:45]} Nc4 {[%emt 0:01:05]} 34. Ba1 {[%emt 0:03:05]} Rd8 {[%emt 0:00:47]} 35. Qc3 {[%emt 0:01:30]} Bd5 {[%emt 0:01:39]} 36. h3 {[%emt 0:03:02]} Nd6 {[%emt 0:00:46]} 37. b6 {[%emt 0:00:48]} Nc4 {[%emt 0:01:29]} 38. b7 {[%emt 0:01:53]} Rb8 {[%emt 0:00:10]} 39. Nf2 {[%emt 0:01:54]} h5 {[%emt 0:03:16]} 40. Ne4 {[%emt 0:00:34]} Bxe4 {[%emt 0:00:45]} 41. Rxe4 {[%emt 0:00:09]} Nd6 {[%emt 0:00:12]} 42. Rd4 {[%emt 0:02:24]} Rxb7 {[%emt 0:02:21]} 43. Rxd6 {[%emt 0:00:24]} Qxd6 {[%emt 0:00:00]} 44. Qxf6+ {[%emt 0:00:11]} Ke8 {[%emt 0:00:00]} 45. Qxg6+ {[%emt 0:00:17]} Kd7 {[%emt 0:00:27]} 46. Be5 {[%emt 0:00:06]} Qd5 {[%emt 0:00:46]} 47. Qxh5 {[%emt 0:00:43]} a4 {[%emt 0:00:42]} 48. Qf7+ {[%emt 0:00:52]} Kc6 {[%emt 0:00:04]} 49. Qe8+ {[%emt 0:00:05]} Qd7 {[%emt 0:00:23]} 50. Qa8 {[%emt 0:00:41]} Kb5 {[%emt 0:00:25]} 51. Qf8 {[%emt 0:05:45]} Qd5 {[%emt 0:00:47]} 52. Kh2 {[%emt 0:01:27]} Qc5 {[%emt 0:00:34]} 53. Qe8+ {[%emt 0:02:38]} Qc6 {[%emt 0:00:02]} 54. Qf8 {[%emt 0:00:08]} Qc5 {[%emt 0:00:09]} 1/2-1/2

[Event "Bruges Masters 2018"]
[Site "Brugge"]
[Date "2018.08.16"]
[Round "7"]
[White "Rajesh, V A V"]
[Black "Ouaki, Mark"]
[Result "1-0"]
[ECO "A70"]
[WhiteElo "2325"]
[BlackElo "1592"]
[Annotator "NA"]
[PlyCount "53"]
[EventDate "2018.08.12"]
[EventType "swiss"]
[EventCountry "BEL"]
[SourceTitle "playchess.com"]
[Source "ChessBase"]
[SourceQuality "1"]
[TimeControl "5400+30"]

1. d4 {[%emt 0:00:00]} Nf6 {[%emt 0:00:00]} 2. c4 {[%emt 0:00:00]} c5 {[%emt 0:00:44]} 3. d5 {[%emt 0:00:03]} e6 {[%emt 0:00:26]} 4. Nc3 {[%emt 0:00:10]} exd5 {[%emt 0:00:12]} 5. cxd5 {[%emt 0:00:18]} d6 {[%emt 0:00:09]} 6. Nf3 {[%emt 0:00:05]} g6 {[%emt 0:00:24]} 7. Bf4 {[%emt 0:00:29]} Bg7 {[%emt 0:01:07]} 8. Qa4+ {[%emt 0:00:21]} Bd7 {[%emt 0:01:07]} 9. Qb3 {[%emt 0:00:08]} Qc7 {[%emt 0:00:34]} 10. e4 {[%emt 0:00:15]} O-O {[%emt 0:01:50]} 11. Be2 {[%emt 0:01:32]} Re8 {[%emt 0:02:26]} 12. Nd2 {[%emt 0:00:28]} Ng4 {[%emt 0:05:04]} 13. Bxg4 {[%emt 0:01:48]} Bxg4 {[%emt 0:00:08]} 14. Nb5 {[%emt 0:00:14]} Qa5 {[%emt 0:04:33]} 15. Nxd6 {[%emt 0:00:37]} Re7 {[%emt 0:00:21]} 16. f3 {[%emt 0:01:03]} Nd7 {[%emt 0:08:45]} 17. fxg4 {[%emt 0:00:19]} Nf6 {[%emt 0:00:27]} 18. O-O {[%emt 1:31:10]} Nxg4 {[%emt 0:00:36]} 19. Nf3 {[%emt 0:00:00]} c4 {[%emt 0:00:50]} 20. Qxc4 {[%emt 0:00:00]} Qb6+ {[%emt 0:00:53]} 21. Kh1 {[%emt 0:00:00]} Nf2+ {[%emt 0:01:41]} 22. Rxf2 {[%emt 0:00:00]} Qxf2 {[%emt 0:00:19]} 23. e5 {[%emt 0:00:00]} Qxb2 {[%emt 0:00:50]} 24. Re1 {[%emt 0:00:00]} Rd8 {[%emt 0:01:32]} 25. a4 {[%emt 0:00:00]} Rdd7 {[%emt 0:02:35]} 26. Qc8+ {[%emt 0:00:00]} Bf8 {[%emt 0:00:09]} 27. Bh6 {[%emt 0:00:00]} 1-0

[Event "Bruges Masters 2018"]
[Site "Brugge"]
[Date "2018.08.16"]
[Round "7"]
[White "Tomov, Georgi"]
[Black "Zeng, Chongsheng"]
[Result "0-1"]
[ECO "B27"]
[WhiteElo "2307"]
[BlackElo "2539"]
[Annotator "ChessBase"]
[PlyCount "114"]
[EventDate "2018.08.12"]
[EventType "swiss"]
[EventCountry "BEL"]
[SourceTitle "playchess.com"]
[Source "ChessBase"]
[SourceQuality "1"]
[TimeControl "5400+30"]

1. e4 {[%emt 0:00:43]} c5 {[%emt 0:07:54]} 2. Nf3 {[%emt 0:00:16]} Nc6 {[%emt 0:00:09]} 3. Bb5 {[%emt 0:00:11]} Nf6 {[%emt 0:02:00]} 4. Bxc6 {[%emt 0:01:05]} bxc6 {[%emt 0:03:12]} 5. e5 {[%emt 0:01:11]} Nd5 {[%emt 0:00:15]} 6. O-O {[%emt 0:01:18]} g6 {[%emt 0:01:14]} 7. c4 {[%emt 0:03:41]} Nc7 {[%emt 0:00:11]} 8. d4 {[%emt 0:00:08]} cxd4 {[%emt 0:00:16]} 9. Qxd4 {[%emt 0:00:03]} Ne6 {[%emt 0:01:27]} 10. Qh4 {[%emt 0:00:55]} h5 {[%emt 0:18:02]} 11. Nc3 {[%emt 0:01:45]} Bg7 {[%emt 0:00:42]} 12. Re1 {[%emt 0:07:22]} d6 {[%emt 0:04:24]} 13. Rd1 {[%emt 0:12:27]} O-O {[%emt 0:03:28]} 14. Ne4 {[%emt 0:00:44]} c5 {[%emt 0:04:36]} 15. Bd2 {[%emt 0:08:44]} Bb7 {[%emt 0:37:29]} 16. Bc3 {[%emt 0:02:02]} Bxe4 {[%emt 0:01:30]} 17. Qxe4 {[%emt 0:00:03]} Qb6 {[%emt 0:00:26]} 18. exd6 {[%emt 0:04:10]} exd6 {[%emt 0:00:01]} 19. Qe3 {[%emt 0:00:51]} Rfe8 {[%emt 0:03:05]} 20. Bxg7 {[%emt 0:03:36]} Nxg7 {[%emt 0:00:40]} 21. Qc3 {[%emt 0:00:41]} Nf5 {[%emt 0:03:18]} 22. Re1 {[%emt 0:00:18]} a5 {[%emt 0:00:22]} 23. h3 {[%emt 0:01:59]} Qb4 {[%emt 0:00:45]} 24. Qxb4 {[%emt 0:03:24]} axb4 {[%emt 0:00:09]} 25. Rxe8+ {[%emt 0:00:07]} Rxe8 {[%emt 0:00:07]} 26. Kf1 {[%emt 0:00:02]} Kf8 {[%emt 0:01:18]} 27. a4 {[%emt 0:02:13]} bxa3 {[%emt 0:00:30]} 28. Rxa3 {[%emt 0:00:10]} Rb8 {[%emt 0:00:20]} 29. b3 {[%emt 0:00:07]} Ke7 {[%emt 0:00:22]} 30. Ke2 {[%emt 0:00:01]} h4 {[%emt 0:00:48]} 31. Kd3 {[%emt 0:00:18]} Kf6 {[%emt 0:00:12]} 32. Kc3 {[%emt 0:01:40]} Re8 {[%emt 0:00:34]} 33. Ra2 {[%emt 0:00:38]} g5 {[%emt 0:00:16]} 34. b4 {[%emt 0:05:04]} cxb4+ {[%emt 0:00:13]} 35. Kxb4 {[%emt 0:00:06]} Re4 {[%emt 0:02:37]} 36. Kc3 {[%emt 0:01:56]} g4 {[%emt 0:00:02]} 37. Nd2 {[%emt 0:00:49]} Rf4 {[%emt 0:00:02]} 38. hxg4 {[%emt 0:00:09]} Rxg4 {[%emt 0:00:02]} 39. f3 {[%emt 0:00:08]} Rg6 {[%emt 0:00:44]} 40. Ne4+ {[%emt 0:14:55]} Ke5 {[%emt 0:00:26]} 41. Kd3 {[%emt 0:00:04]} Kf4 {[%emt 0:00:33]} 42. Rb2 {[%emt 0:02:22]} Ne3 {[%emt 0:00:56]} 43. c5 {[%emt 0:12:02]} dxc5 {[%emt 0:01:42]} 44. Nxc5 {[%emt 0:00:03]} Nxg2 {[%emt 0:00:26]} 45. Ke2 {[%emt 0:00:08]} Kg3 {[%emt 0:02:50]} 46. Ne4+ {[%emt 0:00:23]} Kh2 {[%emt 0:00:16]} 47. Kf2 {[%emt 0:01:26]} f5 {[%emt 0:01:21]} 48. Nc3 {[%emt 0:01:22]} Nf4 {[%emt 0:00:58]} 49. Rb5 {[%emt 0:01:45]} Re6 {[%emt 0:00:24]} 50. Kf1 {[%emt 0:05:03]} Re3 {[%emt 0:00:35]} 51. Nd5 {[%emt 0:03:07]} Rxf3+ {[%emt 0:00:25]} 52. Ke1 {[%emt 0:00:01]} Nxd5 {[%emt 0:00:33]} 53. Rxd5 {[%emt 0:00:01]} h3 {[%emt 0:00:20]} 54. Rd8 {[%emt 0:00:39]} Kg2 {[%emt 0:00:11]} 55. Rd2+ {[%emt 0:00:45]} Kg1 {[%emt 0:00:45]} 56. Rd8 {[%emt 0:00:05]} Re3+ {[%emt 0:00:25]} 57. Kd2 {[%emt 0:00:01]} Rg3 {[%emt 0:00:06]} 0-1

[Event "Bruges Masters 2018"]
[Site "Brugge"]
[Date "2018.08.16"]
[Round "7"]
[White "Ehmann, Thilo"]
[Black "Chernov, Vadim"]
[Result "1-0"]
[ECO "B10"]
[WhiteElo "2303"]
[BlackElo "2412"]
[Annotator "RC"]
[PlyCount "93"]
[EventDate "2018.08.12"]
[EventType "swiss"]
[EventCountry "BEL"]
[SourceTitle "playchess.com"]
[Source "ChessBase"]
[SourceQuality "1"]
[TimeControl "5400+30"]

1. e4 {[%emt 0:00:00]} c6 {[%emt 0:00:00]} 2. c4 {[%emt 0:00:00]} d5 {[%emt 0:00:00]} 3. exd5 {[%emt 0:00:00]} cxd5 {[%emt 0:00:00]} 4. cxd5 {[%emt 0:00:00]} Nf6 {[%emt 0:00:00]} 5. Qa4+ {[%emt 0:00:00]} Nbd7 {[%emt 0:00:04]} 6. Nc3 {[%emt 0:00:00]} g6 {[%emt 0:00:07]} 7. Nf3 {[%emt 0:00:28]} Bg7 {[%emt 0:00:09]} 8. Bc4 {[%emt 0:00:21]} O-O {[%emt 0:00:04]} 9. d3 {[%emt 0:00:07]} a6 {[%emt 0:01:20]} 10. Qa3 {[%emt 0:00:07]} Nb6 {[%emt 0:02:57]} 11. Qb3 {[%emt 0:00:29]} Nxc4 {[%emt 0:01:01]} 12. dxc4 {[%emt 0:00:36]} b5 {[%emt 0:01:47]} 13. O-O {[%emt 0:03:29]} bxc4 {[%emt 0:01:09]} 14. Qxc4 {[%emt 0:01:46]} a5 {[%emt 0:01:38]} 15. Rd1 {[%emt 0:02:22]} Rb8 {[%emt 0:01:55]} 16. Ne5 {[%emt 0:05:03]} Rb4 {[%emt 0:02:35]} 17. Qe2 {[%emt 0:03:11]} Qd6 {[%emt 0:03:45]} 18. h3 {[%emt 0:21:58]} Ba6 {[%emt 0:02:24]} 19. Qe1 {[%emt 0:00:34]} Bb7 {[%emt 0:07:34]} 20. a3 {[%emt 0:10:43]} Rb3 {[%emt 0:01:56]} 21. Bf4 {[%emt 0:00:42]} Qa6 {[%emt 0:04:16]} 22. Rd2 {[%emt 0:02:44]} Rxc3 {[%emt 0:01:11]} 23. bxc3 {[%emt 0:00:38]} Nxd5 {[%emt 0:00:03]} 24. Bg3 {[%emt 0:00:47]} Nxc3 {[%emt 0:00:29]} 25. f3 {[%emt 0:08:37]} Nd5 {[%emt 0:02:00]} 26. Rb1 {[%emt 0:00:41]} e6 {[%emt 0:00:31]} 27. Rdb2 {[%emt 0:02:48]} Bc8 {[%emt 0:01:25]} 28. Rc2 {[%emt 0:04:45]} Ne7 {[%emt 0:03:37]} 29. Bf2 {[%emt 0:04:41]} Qd6 {[%emt 0:03:43]} 30. Bc5 {[%emt 0:02:49]} Qxe5 {[%emt 0:00:16]} 31. Qxe5 {[%emt 0:00:27]} Bxe5 {[%emt 0:00:04]} 32. Bxe7 {[%emt 0:00:04]} Re8 {[%emt 0:00:05]} 33. Rd1 {[%emt 0:01:29]} a4 {[%emt 0:06:58]} 34. Rc4 {[%emt 0:05:03]} Kg7 {[%emt 0:04:52]} 35. Bd6 {[%emt 0:01:11]} Bf6 {[%emt 0:02:30]} 36. Bg3 {[%emt 0:00:46]} Bb7 {[%emt 0:02:53]} 37. Rd7 {[%emt 0:02:07]} Bd5 {[%emt 0:00:07]} 38. Rcc7 {[%emt 0:00:41]} Bd4+ {[%emt 0:00:17]} 39. Kh2 {[%emt 0:00:29]} h6 {[%emt 0:00:47]} 40. Rxf7+ {[%emt 0:00:17]} Kg8 {[%emt 0:00:04]} 41. Bd6 {[%emt 0:01:50]} Rd8 {[%emt 0:01:19]} 42. Rfd7 {[%emt 0:00:54]} Rxd7 {[%emt 0:00:57]} 43. Rxd7 {[%emt 0:01:05]} g5 {[%emt 0:01:25]} 44. Kg3 {[%emt 0:02:05]} h5 {[%emt 0:00:27]} 45. h4 {[%emt 0:00:40]} Bf6 {[%emt 0:00:28]} 46. hxg5 {[%emt 0:00:19]} Bxg5 {[%emt 0:00:04]} 47. Ra7 {[%emt 0:02:06]} 1-0

[Event "Bruges Masters 2018"]
[Site "Brugge"]
[Date "2018.08.16"]
[Round "7"]
[White "Hu Yik Kwan"]
[Black "Geirnaert, Steven"]
[Result "0-1"]
[ECO "B01"]
[WhiteElo "1504"]
[BlackElo "2427"]
[Annotator "ChessBase"]
[PlyCount "73"]
[EventDate "2018.08.12"]
[EventType "swiss"]
[EventCountry "BEL"]
[SourceTitle "playchess.com"]
[Source "ChessBase"]
[SourceQuality "1"]
[TimeControl "5400+30"]

1. e4 {[%emt 0:00:00]} d5 {[%emt 0:03:47]} 2. exd5 {[%emt 0:04:33]} Qxd5 {[%emt 0:00:07]} 3. Nc3 {[%emt 0:03:06]} Qa5 {[%emt 0:00:12]} 4. Nf3 {[%emt 0:06:27]} Nf6 {[%emt 0:01:22]} 5. d3 {[%emt 0:07:16]} c6 {[%emt 0:02:04]} 6. Be2 {[%emt 0:01:36]} Bf5 {[%emt 0:01:14]} 7. O-O {[%emt 0:00:16]} e6 {[%emt 0:00:09]} 8. Bd2 {[%emt 0:01:50]} Qc7 {[%emt 0:00:18]} 9. Nh4 {[%emt 0:03:59]} Bg6 {[%emt 0:00:39]} 10. h3 {[%emt 0:00:56]} Nbd7 {[%emt 0:00:26]} 11. Rb1 {[%emt 0:16:24]} a5 {[%emt 0:00:33]} 12. Bf3 {[%emt 0:11:54]} Bc5 {[%emt 0:05:21]} 13. Qe2 {[%emt 0:01:14]} Qg3 {[%emt 0:01:54]} 14. Nxg6 {[%emt 0:12:32]} hxg6 {[%emt 0:00:20]} 15. Be3 {[%emt 0:00:39]} Qe5 {[%emt 0:03:04]} 16. Bd2 {[%emt 0:08:17]} g5 {[%emt 0:21:30]} 17. Ne4 {[%emt 0:07:48]} Nxe4 {[%emt 0:02:23]} 18. Qxe4 {[%emt 0:00:19]} Rh4 {[%emt 0:10:20]} 19. Qxe5 {[%emt 0:03:58]} Nxe5 {[%emt 0:00:07]} 20. Be2 {[%emt 0:00:16]} Be7 {[%emt 0:01:57]} 21. Rbe1 {[%emt 0:03:54]} Ng6 {[%emt 0:01:00]} 22. Bg4 {[%emt 0:00:44]} Bf6 {[%emt 0:04:45]} 23. g3 {[%emt 0:00:46]} Rh8 {[%emt 0:00:24]} 24. Kg2 {[%emt 0:00:15]} Ne7 {[%emt 0:03:55]} 25. Bf3 {[%emt 0:01:50]} Nf5 {[%emt 0:02:36]} 26. c3 {[%emt 0:01:20]} a4 {[%emt 0:00:56]} 27. Be4 {[%emt 0:00:39]} Nd6 {[%emt 0:00:39]} 28. Bf3 {[%emt 0:00:39]} Ke7 {[%emt 0:00:59]} 29. Rb1 {[%emt 0:00:32]} Rhd8 {[%emt 0:00:36]} 30. d4 {[%emt 0:00:30]} Nb5 {[%emt 0:02:02]} 31. Be2 {[%emt 0:00:30]} Nc7 {[%emt 0:01:46]} 32. Be3 {[%emt 0:00:30]} Nd5 {[%emt 0:01:54]} 33. Bd2 {[%emt 0:00:30]} Kf8 {[%emt 0:01:36]} 34. Rfd1 {[%emt 0:00:30]} Ne7 {[%emt 0:00:51]} 35. Bg4 {[%emt 0:00:29]} Rd7 {[%emt 0:01:24]} 36. Be3 {[%emt 0:00:31]} Rad8 {[%emt 0:00:18]} 37. b4 {[%emt 0:01:01]} 0-1